bitfinex/quotes_SOLUSD_20250418
["timestamp","ask_amount","ask_price","bid_price","bid_amount"]
[1744994140818,7.50131272,133.31,133.28,15.12301038]
[1744994143031,7.50075007,133.32,133.28,15.12301038]
[1744994147625,7.50075007,133.32,133.29,15.12301038]
[1744994149103,22.62376045,133.32,133.27,136.48801038]
[1744994149732,22.62376045,133.32,133.28,15.12301038]
[1744994156522,7.50075007,133.32,133.28,15.12301038]
[1744994158541,7.50029285,133.33,133.3,15.12301038]
[1744994159136,7.50029285,133.33,133.29,15.12301038]
[1744994160026,15.12301038,133.32,133.28,15.12301038]
[1744994160224,15.12301038,133.32,133.27,136.48801038]
[1744994160732,7.50131272,133.31,133.27,136.48801038]
[1744994162412,7.50131272,133.31,133.28,15.12301038]
[1744994163044,27.8518829,133.36,133.28,22.62592517]
[1744994163045,7.50075007,133.32,133.28,22.62592517]
[1744994163245,7.50075007,133.32,133.28,15.12301038]
[1744994163429,7.50075007,133.32,133.29,15.12301038]
[1744994163624,7.50075007,133.32,133.28,15.12301038]
[1744994164319,7.5001875,133.33,133.29,15.12301038]
[1744994165037,22.62319788,133.33,133.27,136.48801038]
[1744994166140,41.37366664,133.33,133.28,15.12301038]
[1744994167345,41.37366664,133.33,133.27,136.48801038]
[1744994168355,15.12301038,133.3,133.27,95.365]
[1744994168532,7.50243829,133.29,133.27,95.365]
[1744994168728,15.12301038,133.28,133.27,14.8]
[1744994168923,75.6150519,133.28,133.26,0.063]
[1744994169129,15.12301038,133.27,133.26,0.063]
[1744994169650,59.77265924,133.27,133.24,0.063]
[1744994169956,15.12301038,133.25,133.24,0.063]
[1744994170645,22.62770081,133.25,133.24,0.063]
[1744994174144,7.50469043,133.25,133.24,0.063]
[1744994175648,7.50437338,133.26,133.24,0.063]
[1744994175950,15.12301038,133.25,133.24,0.063]
[1744994176635,22.62770081,133.25,133.24,0.063]
[1744994182352,22.62770081,133.25,133.23,0.063]
[1744994182353,15.12301038,133.24,133.23,0.063]
[1744994184254,22.62826405,133.24,133.23,0.063]
[1744994189860,44.64964886,133.23,133.21,0.063]
[1744994190048,15.12301038,133.22,133.21,0.063]
[1744994193437,22.6293908,133.22,133.21,0.063]
[1744994198332,22.6293908,133.22,133.2,0.063]
[1744994198532,15.12301038,133.21,133.2,0.063]
[1744994199461,22.6299543,133.21,133.2,0.063]
[1744994209450,41.27960316,133.21,133.2,0.063]
[1744994210180,22.6299543,133.21,133.2,0.063]
[1744994216655,41.27960316,133.21,133.2,0.063]
[1744994217052,67.42176473,133.21,133.2,1e-08]
[1744994217781,127.91380625,133.21,133.2,1e-08]
[1744994218581,67.42176473,133.21,133.2,1e-08]
[1744994219863,52.29875435,133.21,133.2,1e-08]
[1744994220063,33.50694392,133.21,133.2,1e-08]
[1744994220481,7.505817,133.23,133.2,1e-08]
[1744994220676,33.505817,133.23,133.2,16.69171039]
[1744994220858,33.505817,133.23,133.2,1.56870001]
[1744994221057,48.62882738,133.23,133.2,1.56870001]
[1744994221260,22.62882738,133.23,133.2,1.56870001]
[1744994221885,48.62882738,133.23,133.2,1.56870001]
[1744994223990,7.505817,133.23,133.2,16.69171039]
[1744994224190,22.45679426,133.27,133.22,15.12301038]
[1744994224487,26.03,133.27,133.23,15.12301038]
[1744994224661,26.0,133.26,133.23,15.12301038]
[1744994224862,26.0,133.26,133.22,15.12301038]
[1744994225193,48.62713764,133.26,133.22,15.12301038]
[1744994225983,33.53376162,133.27,133.24,15.12301038]
[1744994226392,33.53376162,133.27,133.23,15.12301038]
[1744994228673,33.53376162,133.27,133.24,15.12301038]
[1744994231886,33.53376162,133.27,133.23,15.12301038]
[1744994232367,33.53376162,133.27,133.21,80.565]
[1744994232368,67.41568248,133.27,133.21,80.565]
[1744994232573,52.2926721,133.27,133.24,15.12301038]
[1744994232881,33.53376162,133.27,133.24,15.12301038]
[1744994233083,33.53376162,133.27,133.23,15.12301038]
[1744994233286,33.53376162,133.27,133.24,15.12301038]
[1744994234786,33.53376162,133.27,133.23,15.12301038]
[1744994235487,33.53376162,133.27,133.24,15.12301038]
[1744994235681,7.53376162,133.27,133.24,15.12301038]
[1744994236685,0.03,133.27,133.24,15.12301038]
[1744994244386,7.50412726,133.26,133.23,15.12301038]
[1744994244690,15.12301038,133.24,133.21,14.78]
[1744994245398,15.12301038,133.23,133.2,1.56870001]
[1744994245696,15.12301038,133.21,133.2,1e-08]
[1744994247391,22.6299543,133.21,133.2,1e-08]
[1744994253314,127.77164468,133.21,133.2,1e-08]
[1744994255992,67.27960316,133.21,133.2,1e-08]
[1744994259693,101.91380625,133.21,133.2,1e-08]
[1744994260504,59.77265924,133.19,133.18,1e-08]
[1744994262308,26.0,133.16,133.15,1e-08]
[1744994262498,41.12301038,133.16,133.15,1e-08]
[1744994264402,48.63277307,133.16,133.15,1e-08]
[1744994265204,67.28242193,133.16,133.15,1e-08]
[1744994265712,67.28242193,133.16,133.13,0.063]
[1744994265713,18.64964886,133.15,133.13,0.063]
[1744994265889,15.12301038,133.14,133.13,0.063]
[1744994266491,22.63390117,133.14,133.13,0.063]
[1744994272207,7.51089079,133.14,133.13,0.063]
[1744994272406,7.51089079,133.14,133.13,15.18601038]
[1744994272609,15.12301038,133.17,133.13,15.18601038]
[1744994272909,15.12301038,133.16,133.13,0.063]
[1744994274492,7.51032669,133.15,133.13,0.063]
[1744994280303,22.63333707,133.15,133.13,0.063]
[1744994281192,15.12301038,133.14,133.13,0.063]
[1744994282406,22.63390117,133.14,133.13,0.063]
[1744994283895,22.63390117,133.14,133.12,0.063]
[1744994284116,15.12301038,133.13,133.12,0.063]
[1744994284718,22.63446534,133.13,133.12,0.063]
[1744994285215,7.51145496,133.13,133.12,0.063]
[1744994285918,22.63446534,133.13,133.12,0.063]
[1744994286720,41.2841142,133.13,133.12,0.063]
[1744994287023,44.64964886,133.12,133.11,0.063]
[1744994287195,59.91482081,133.12,133.11,1e-08]
[1744994289003,67.42684004,133.12,133.11,1e-08]
[1744994290609,33.51201923,133.12,133.11,1e-08]
[1744994290809,48.63502961,133.12,133.11,1e-08]
[1744994291519,22.63502961,133.12,133.11,1e-08]
[1744994299807,41.42684004,133.12,133.11,1e-08]
[1744994301539,37.54034798,133.2,133.12,26.0]
[1744994301739,7.50807117,133.19,133.12,15.12301038]
[1744994301942,7.50976269,133.16,133.12,15.12301038]
[1744994303749,7.50976269,133.16,133.13,15.12301038]
[1744994306129,7.50919876,133.17,133.13,15.12301038]
[1744994306435,22.63220914,133.17,133.13,15.12301038]
[1744994307421,22.63220914,133.17,133.12,15.12301038]
[1744994308530,15.12301038,133.14,133.11,1e-08]
[1744994311057,15.12301038,133.16,133.12,15.12301038]
[1744994311260,33.8960073,133.17,133.13,15.12301038]
[1744994312553,7.50976269,133.16,133.12,15.12301038]
[1744994319556,22.63277307,133.16,133.12,15.12301038]
[1744994322534,41.40717979,133.16,133.11,15.12301039]
[1744994322740,15.12301038,133.13,133.11,1e-08]
[1744994323456,15.12301038,133.14,133.11,1e-08]
[1744994323837,15.12301038,133.15,133.11,15.12301039]
[1744994324162,26.28416941,133.16,133.12,15.12301038]
[1744994324342,41.40717979,133.16,133.12,15.12301038]
[1744994324657,41.40717979,133.16,133.11,15.12301039]
[1744994326864,41.40717979,133.16,133.12,15.12301038]
[1744994327545,26.28416941,133.16,133.12,15.12301038]
[1744994328961,7.50976269,133.16,133.11,7.51255858]
[1744994329267,7.50935693,133.17,133.14,15.12301038]
[1744994330157,7.50863493,133.18,133.14,15.12301038]
[1744994331065,7.50863493,133.18,133.15,15.12301038]
[1744994332165,7.50807117,133.19,133.15,15.12301038]
[1744994333848,7.50807117,133.19,133.17,15.12301038]
[1744994334371,7.5075075,133.2,133.16,15.12301038]
[1744994335741,22.63051788,133.2,133.16,15.12301038]
[1744994335946,22.63051788,133.2,133.15,31.44661038]
[1744994336347,22.63051788,133.2,133.15,16.3236]
[1744994336348,15.12301038,133.19,133.15,16.3236]
[1744994336764,15.12301038,133.19,133.15,14.78]
[1744994338272,7.50863493,133.18,133.15,14.78]
[1744994338852,7.50863493,133.18,133.15,29.90301038]
[1744994339871,33.89177914,133.2,133.16,15.12301038]
[1744994340076,18.76876876,133.2,133.16,15.12301038]
[1744994340466,7.56994392,133.21,133.18,15.12301038]
[1744994340768,7.56994392,133.21,133.2,15.12301038]
[1744994340945,0.063,133.21,133.2,15.12301038]
[1744994343677,0.063,133.21,133.2,29.90301038]
[1744994351175,0.063,133.21,133.2,14.78]
[1744994351586,15.18601038,133.21,133.17,80.565]
[1744994351975,0.063,133.21,133.18,15.12301038]
[1744994352388,0.063,133.21,133.17,80.565]
[1744994352692,0.063,133.21,133.18,15.12301038]
[1744994353381,7.56994392,133.21,133.17,15.12301038]
[1744994353586,26.33730372,133.21,133.17,15.12301038]
[1744994354073,26.33730372,133.21,133.18,15.12301038]
[1744994354874,26.33730372,133.21,133.17,15.12301038]
[1744994355366,15.12301038,133.19,133.16,14.78]
[1744994355798,15.12301038,133.2,133.16,14.78]
[1744994357081,7.50807117,133.19,133.16,14.78]
[1744994358774,15.12301038,133.19,133.16,14.78]
[1744994359598,18.76972638,133.2,133.17,15.12301038]
[1744994360578,26.27723388,133.2,133.17,15.12301038]
[1744994361008,7.5075075,133.2,133.17,15.12301038]
[1744994361180,7.5075075,133.2,133.19,15.12301038]
[1744994362508,0.063,133.21,133.19,15.12301038]
[1744994364015,0.063,133.21,133.2,15.12301038]
[1744994364214,0.063,133.21,133.19,15.12301038]
[1744994387514,0.063,133.21,133.2,15.12301038]
[1744994390958,0.063,133.21,133.2,103.19551788]
[1744994391530,0.063,133.21,133.2,95.68801038]
[1744994404929,0.063,133.21,133.2,103.62200259]
[1744994405155,0.063,133.21,133.2,164.11404411]
[1744994406250,7.53356419,133.27,133.21,0.42648471]
[1744994406438,7.53356419,133.27,133.24,15.12301038]
[1744994408440,33.53356419,133.27,133.24,15.12301038]
[1744994410342,33.53356419,133.27,133.25,15.12301038]
[1744994413456,33.53356419,133.27,133.26,15.12301038]
[1744994413756,7.53356419,133.27,133.23,102.85050575]
[1744994413947,7.53356419,133.27,133.25,15.12301038]
[1744994415054,0.03,133.27,133.25,15.12301038]
[1744994420455,0.03,133.27,133.26,15.12301038]
[1744994422666,0.03,133.27,133.26,95.68801038]
[1744994432785,0.03,133.27,133.26,15.12301038]
[1744994439488,0.03,133.27,133.25,29.88301038]
[1744994440592,0.03,133.27,133.26,15.12301038]
[1744994446699,0.03,133.27,133.23,80.565]
[1744994446888,41.12301038,133.26,133.22,15.12301038]
[1744994447191,15.12301038,133.25,133.21,29.88301038]
[1744994447394,7.50525367,133.24,133.21,29.88301038]
[1744994447766,7.50525367,133.24,133.21,14.76]
[1744994448196,7.50525367,133.24,133.21,29.88301038]
[1744994449492,41.38942688,133.25,133.21,14.76]
[1744994449799,41.38942688,133.25,133.2,0.063]
[1744994449800,15.12301038,133.22,133.2,0.063]
[1744994450495,15.12301038,133.21,133.2,0.063]
[1744994451797,22.6299543,133.21,133.2,0.063]
[1744994452479,7.50694392,133.21,133.2,0.063]
[1744994453097,6.6252,133.24,133.2,0.063]
[1744994453285,7.505817,133.23,133.21,15.12301038]
[1744994454173,7.50525367,133.24,133.21,15.12301038]
[1744994454495,7.50525367,133.24,133.2,15.18601038]
[1744994458994,22.62826405,133.24,133.2,15.18601038]
[1744994461076,7.50525367,133.24,133.2,15.18601038]
[1744994461278,7.50525367,133.24,133.21,15.12301038]
[1744994461473,7.50525367,133.24,133.22,15.12301038]
[1744994461693,7.50525367,133.24,133.21,15.12301038]
[1744994461897,22.62826405,133.24,133.2,15.18601038]
[1744994462173,15.12301038,133.23,133.2,0.063]
[1744994462376,15.12301038,133.22,133.2,0.063]
[1744994462801,7.50694392,133.21,133.2,0.063]
[1744994462998,22.6299543,133.21,133.2,0.063]
[1744994463298,101.77164468,133.21,133.2,1e-08]
[1744994463500,101.91380625,133.21,133.2,1e-08]
[1744994464077,26.0,133.17,133.14,0.063]
[1744994464275,15.12301038,133.15,133.14,0.063]
[1744994464696,15.12301038,133.16,133.14,0.063]
[1744994464880,7.50976269,133.16,133.14,15.18601038]
[1744994465199,7.50976269,133.16,133.14,0.063]
[1744994467487,22.63277307,133.16,133.14,0.063]
[1744994468106,7.50976269,133.16,133.14,0.063]
[1744994468615,7.50976269,133.16,133.14,15.18601038]
[1744994468997,26.2808898,133.18,133.14,15.18601038]
[1744994469499,7.50863493,133.18,133.15,15.12301038]
[1744994469701,7.50863493,133.18,133.16,15.12301038]
[1744994469894,7.50863493,133.18,133.15,15.12301038]
[1744994473984,7.50863493,133.18,133.14,15.18601038]
[1744994475414,7.50863493,133.18,133.15,15.12301038]
[1744994476129,7.50863493,133.18,133.16,15.12301038]
[1744994476789,7.50833465,133.19,133.16,15.12301038]
[1744994478215,26.2764117,133.2,133.16,15.12301038]
[1744994478706,41.39942208,133.2,133.16,15.12301038]
[1744994478914,41.39942208,133.2,133.15,15.12301038]
[1744994482713,26.2764117,133.2,133.15,15.12301038]
[1744994482893,41.39942208,133.2,133.16,15.12301038]
[1744994485406,26.2764117,133.2,133.16,15.12301038]
[1744994488332,41.39942208,133.2,133.16,15.12301038]
[1744994488734,26.2764117,133.2,133.16,15.12301038]
[1744994488941,7.5075075,133.2,133.17,15.12301038]
[1744994489114,7.5075075,133.2,133.18,15.12301038]
[1744994490328,8.1867,133.25,133.19,15.12301038]
[1744994490534,7.50469043,133.25,133.23,15.12301038]
[1744994490715,33.50469043,133.25,133.23,15.12301038]
[1744994490914,7.50469043,133.25,133.23,15.12301038]
[1744994491230,7.56735333,133.26,133.24,15.12301038]
[1744994491435,7.56735333,133.26,133.25,15.12301038]
[1744994491436,0.063,133.26,133.25,15.12301038]
[1744994497629,0.063,133.26,133.22,7.50600288]
[1744994497834,0.063,133.26,133.25,15.12301038]
[1744994499527,0.063,133.26,133.24,15.12301038]
[1744994505454,0.063,133.26,133.25,15.12301038]
[1744994515862,0.063,133.26,133.23,14.76]
[1744994516066,15.18601038,133.26,133.21,80.565]
[1744994516359,33.83565924,133.26,133.22,15.12301038]
[1744994516750,18.71264886,133.26,133.22,15.12301038]
[1744994517450,18.71264886,133.26,133.23,15.12301038]
[1744994517854,7.50469043,133.25,133.23,15.12301038]
[1744994518366,7.50469043,133.25,133.22,15.12301038]
[1744994521959,7.50469043,133.25,133.24,15.12301038]
[1744994522276,7.56736674,133.26,133.24,15.12301038]
[1744994522446,0.063,133.26,133.25,15.12301038]
[1744994529881,0.063,133.26,133.24,15.12301038]
[1744994532868,0.063,133.26,133.25,15.12301038]
[1744994534683,0.063,133.26,133.24,15.12301038]
[1744994535183,0.063,133.26,133.25,15.12301038]
[1744994554606,0.063,133.26,133.23,80.565]
[1744994554909,15.18601038,133.26,133.22,15.12301038]
[1744994556497,7.50469043,133.25,133.22,15.12301038]
[1744994556995,26.2664165,133.25,133.2,14.76]
[1744994557304,26.2664165,133.25,133.22,15.12301038]
[1744994557690,15.12301038,133.24,133.2,29.88301038]
[1744994558004,15.12301038,133.23,133.2,14.76]
[1744994558594,7.50638042,133.22,133.19,15.12301038]
[1744994559578,26.27035952,133.23,133.19,15.12301038]
[1744994559780,15.12301038,133.22,133.18,14.76]
[1744994560002,15.12301038,133.2,133.18,14.76]
[1744994560203,18.64964886,133.22,133.18,14.76]
[1744994560204,33.77265924,133.22,133.18,14.76]
[1744994560406,15.12301038,133.21,133.18,14.76]
[1744994561291,7.5075075,133.2,133.18,14.76]
[1744994561886,7.5075075,133.2,133.18,29.88301038]
[1744994562906,7.5075075,133.2,133.18,14.76]
[1744994568613,7.5075075,133.2,133.18,29.88301038]
[1744994568913,7.50694392,133.21,133.18,14.76]
[1744994572718,15.12301038,133.2,133.15,15.12301038]
[1744994573519,15.12301038,133.2,133.16,15.12301038]
[1744994573914,15.12301038,133.2,133.15,15.12301038]
[1744994574417,7.50807117,133.19,133.15,15.12301038]
[1744994576419,7.50807117,133.19,133.14,95.388]
[1744994576604,7.50807117,133.19,133.16,15.12301038]
[1744994578410,41.40125949,133.19,133.15,15.12301038]
[1744994582201,26.27824911,133.19,133.16,15.12301038]
[1744994585626,7.50807117,133.19,133.16,15.12301038]
[1744994593334,7.5075075,133.2,133.16,15.12301038]
[1744994599533,26.27627626,133.2,133.16,15.12301038]
[1744994616351,26.27627626,133.2,133.15,14.76]
[1744994616641,26.27627626,133.2,133.16,15.12301038]
[1744994619549,26.27627626,133.2,133.15,29.88301038]
[1744994624860,7.5075075,133.2,133.19,15.12301038]
[1744994625050,7.5075075,133.2,133.18,15.12301038]
[1744994626059,26.27279468,133.22,133.18,15.12301038]
[1744994630959,33.88942464,133.22,133.18,15.12301038]
[1744994632259,33.77265924,133.21,133.17,29.86301038]
[1744994632442,15.12301038,133.2,133.17,14.74]
[1744994633337,7.50807117,133.19,133.17,14.74]
[1744994634861,26.27640553,133.2,133.17,14.74]
[1744994635762,26.27640553,133.2,133.17,29.86301038]
[1744994635963,7.5075075,133.2,133.18,15.12301038]
[1744994636945,26.27430372,133.21,133.18,15.12301038]
[1744994638263,41.3973141,133.21,133.17,29.86301038]
[1744994638464,41.3973141,133.21,133.17,14.74]
[1744994638767,41.3973141,133.21,133.17,29.86301038]
[1744994641282,41.3973141,133.21,133.17,15.12301038]
[1744994644075,18.7673598,133.21,133.17,15.12301038]
[1744994646076,26.27430372,133.21,133.17,15.12301038]
[1744994652662,26.27430372,133.21,133.18,15.12301038]
[1744994654868,26.27430372,133.21,133.17,15.12301038]
[1744994658683,41.3973141,133.21,133.17,15.12301038]
[1744994660880,41.3973141,133.21,133.16,14.74]
[1744994661092,41.3973141,133.21,133.17,15.12301038]
[1744994662369,26.27430372,133.21,133.17,15.12301038]
[1744994663186,7.50694392,133.21,133.18,15.12301038]
[1744994663376,7.50694392,133.21,133.19,15.12301038]
[1744994663962,26.27075084,133.23,133.19,15.12301038]
[1744994667186,26.27075084,133.23,133.2,15.12301038]
[1744994669179,7.50497871,133.25,133.22,15.12301038]
[1744994669380,0.063,133.26,133.24,15.12301038]
[1744994669381,7.56741696,133.26,133.24,15.12301038]
[1744994669588,7.56741696,133.26,133.25,15.12301038]
[1744994670464,0.063,133.26,133.25,15.12301038]
[1744994682891,0.063,133.26,133.24,15.12301038]
[1744994683070,0.063,133.26,133.25,15.12301038]
[1744994684174,0.063,133.26,133.24,15.12301038]
[1744994684377,15.12301038,133.25,133.21,29.86301038]
[1744994684878,7.50525367,133.24,133.21,29.86301038]
[1744994686199,7.50525367,133.24,133.21,14.74]
[1744994686388,15.12301038,133.23,133.21,14.74]
[1744994686597,15.12301038,133.23,133.19,0.03]
[1744994687787,15.12301038,133.23,133.19,15.15301038]
[1744994688506,7.50638042,133.22,133.19,15.15301038]
[1744994691203,7.50638042,133.22,133.19,0.03]
[1744994693498,15.12301038,133.21,133.19,0.03]
[1744994694179,41.39534185,133.22,133.19,0.03]
[1744994698907,15.12301038,133.21,133.19,0.03]
[1744994700310,7.5075075,133.2,133.19,0.03]
[1744994702613,33.88896143,133.22,133.19,0.03]
[1744994702614,7.50694392,133.21,133.19,0.03]
[1744994704308,18.76595105,133.22,133.19,15.15301038]
[1744994704309,7.50638042,133.22,133.19,15.15301038]
[1744994704908,7.50638042,133.22,133.2,15.12301038]
[1744994705795,7.50638042,133.22,133.19,0.03]
[1744994705995,22.6293908,133.22,133.19,0.03]
[1744994706415,7.50638042,133.22,133.19,0.03]
[1744994706711,7.50638042,133.22,133.19,15.15301038]
[1744994710019,7.50638042,133.22,133.2,15.12301038]
[1744994710217,18.82357703,133.26,133.21,15.12301038]
[1744994710401,18.82357703,133.26,133.23,15.12301038]
[1744994712026,26.32770429,133.26,133.23,15.12301038]
[1744994715220,7.56712726,133.26,133.24,15.12301038]
[1744994715825,7.56712726,133.26,133.23,15.12301038]
[1744994716927,7.56712726,133.26,133.24,15.12301038]
[1744994717099,7.56712726,133.26,133.25,15.12301038]
[1744994717717,0.063,133.26,133.24,15.12301038]
[1744994722939,0.063,133.26,133.25,15.12301038]
[1744994723913,0.063,133.26,133.25,22.62770081]
[1744994727637,0.063,133.26,133.24,89.69762771]
[1744994727832,0.063,133.26,133.25,15.12301038]
[1744994729242,0.063,133.26,133.24,89.69762771]
[1744994729539,0.063,133.26,133.25,15.12301038]
[1744994730748,0.063,133.26,133.25,22.62770081]
[1744994731551,0.063,133.26,133.25,15.12301038]
[1744994735841,0.063,133.26,133.24,80.565]
[1744994736143,15.18601038,133.26,133.22,14.74]
[1744994736339,7.50469043,133.25,133.22,29.86301038]
[1744994738443,15.12301038,133.24,133.22,14.74]
[1744994738623,44.97720425,133.26,133.19,249.01301038]
[1744994738624,15.12301038,133.23,133.19,249.01301038]
[1744994738938,15.12301038,133.22,133.19,0.03]
[1744994739529,15.12301038,133.2,133.19,0.03]
[1744994740345,22.63051788,133.2,133.19,0.03]
[1744994743853,7.5075075,133.2,133.19,0.03]
[1744994744149,7.5075075,133.2,133.19,15.15301038]
[1744994744339,7.50719198,133.21,133.19,15.15301038]
[1744994745463,7.50638042,133.22,133.19,15.15301038]
[1744994746756,22.6293908,133.22,133.19,0.03]
[1744994746957,41.39534185,133.22,133.19,0.03]
[1744994752160,15.12301038,133.2,133.19,0.03]
[1744994753269,22.63051788,133.2,133.19,0.03]
[1744994754768,41.28016674,133.2,133.19,0.03]
[1744994755945,41.28016674,133.2,133.19,1e-08]
[1744994762770,26.0,133.18,133.17,1e-08]
[1744994762952,41.12301038,133.18,133.17,1e-08]
[1744994763349,67.70777888,133.18,133.17,1e-08]
[1744994766165,67.28129417,133.18,133.17,1e-08]
[1744994767272,67.70777888,133.18,133.17,1e-08]
[1744994773498,18.64964886,133.13,133.12,0.063]
[1744994773664,101.36657155,133.18,133.12,0.063]
[1744994773869,44.64964886,133.17,133.14,15.12301038]
[1744994774178,7.50976269,133.16,133.14,15.12301038]
[1744994774780,26.27643122,133.2,133.15,15.12301038]
[1744994774983,26.27643122,133.2,133.16,15.12301038]
[1744994775189,41.3994416,133.2,133.16,15.12301038]
[1744994775400,26.27643122,133.2,133.18,15.12301038]
[1744994776181,18.76892372,133.2,133.18,15.12301038]
[1744994776591,18.76892372,133.2,133.17,15.12301038]
[1744994777184,33.8919341,133.2,133.16,15.12301038]
[1744994777390,33.8919341,133.2,133.15,15.12301038]
[1744994778302,41.3994416,133.2,133.15,15.12301038]
[1744994779691,41.3994416,133.2,133.16,15.12301038]
[1744994780203,26.27643122,133.2,133.17,15.12301038]
[1744994780398,7.5075075,133.2,133.19,15.12301038]
[1744994782506,7.50694392,133.21,133.19,15.12301038]
[1744994783183,26.27430372,133.21,133.18,15.12301038]
[1744994785883,26.27430372,133.21,133.14,156.53981833]
[1744994786083,26.27430372,133.21,133.18,15.12301038]
[1744994788413,26.27430372,133.21,133.17,15.12301038]
[1744994790110,26.27430372,133.21,133.18,15.12301038]
[1744994790703,26.27430372,133.21,133.17,15.12301038]
[1744994794812,41.3973141,133.21,133.17,15.12301038]
[1744994797117,18.64964886,133.2,133.16,15.12301038]
[1744994797296,15.12301038,133.18,133.14,80.565]
[1744994797495,15.12301038,133.16,133.13,14.74]
[1744994797709,15.12301038,133.14,133.12,0.063]
[1744994797897,15.12301038,133.13,133.12,0.063]
[1744994798218,15.12301038,133.14,133.12,0.063]
[1744994798800,7.51145496,133.13,133.12,0.063]
[1744994802012,22.63446534,133.13,133.12,0.063]
[1744994802202,41.2841142,133.13,133.11,1e-08]
[1744994802404,15.12301038,133.12,133.11,1e-08]
[1744994803323,22.63502961,133.12,133.11,1e-08]
[1744994804220,7.51201923,133.12,133.11,1e-08]
[1744994806423,22.63502961,133.12,133.11,1e-08]
[1744994808120,7.51201923,133.12,133.11,1e-08]
[1744994809710,7.51089079,133.14,133.11,15.12301039]
[1744994810419,7.51089079,133.14,133.11,1e-08]
[1744994810805,26.28811776,133.14,133.11,1e-08]
[1744994812013,33.90023735,133.14,133.11,1e-08]
[1744994813124,15.12301038,133.12,133.11,1e-08]
[1744994814927,22.63502961,133.12,133.11,1e-08]
[1744994815119,7.51201923,133.12,133.11,1e-08]
[1744994816831,15.12301038,133.12,133.11,1e-08]
[1744994817225,15.12301038,133.13,133.11,1e-08]
[1744994818532,33.90023735,133.14,133.11,1e-08]
[1744994819937,15.12301038,133.13,133.11,1e-08]
[1744994820837,26.28811776,133.14,133.11,1e-08]
[1744994820838,15.12301038,133.12,133.11,1e-08]
[1744994821341,22.63502961,133.12,133.11,1e-08]
[1744994821838,7.51201923,133.12,133.11,1e-08]
[1744994823433,18.64964886,133.15,133.11,15.12301039]
[1744994823622,15.12301038,133.12,133.11,1e-08]
[1744994824133,15.12301038,133.13,133.11,1e-08]
[1744994825419,7.51201923,133.12,133.11,1e-08]
[1744994826130,22.63502961,133.12,133.11,1e-08]
[1744994826641,41.28467847,133.12,133.11,1e-08]
[1744994827864,7.51201923,133.12,133.11,1e-08]
[1744994830843,22.63502961,133.12,133.11,1e-08]
[1744994831142,41.28467847,133.12,133.09,14.783]
[1744994831330,15.12301038,133.1,133.09,0.063]
[1744994831525,33.77265924,133.1,133.09,0.063]
[1744994832047,33.77265924,133.1,133.08,0.063]
[1744994832243,33.77265924,133.09,133.07,0.063]
[1744994832444,18.64964886,133.08,133.07,0.063]
[1744994832663,18.64964886,133.09,133.07,0.063]
[1744994833160,7.51371252,133.09,133.07,0.063]
[1744994836162,15.12301038,133.08,133.07,0.063]
[1744994837057,22.6372875,133.08,133.07,0.063]
[1744994837458,7.51427712,133.08,133.07,0.063]
[1744994838164,22.6372875,133.08,133.07,0.063]
[1744994838858,7.51427712,133.08,133.07,0.063]
[1744994839763,22.6372875,133.08,133.07,0.063]
[1744994840266,41.28693636,133.08,133.07,0.063]
[1744994845279,7.51427712,133.08,133.07,0.063]
[1744994846171,7.51371252,133.09,133.07,0.063]
[1744994847681,15.12301038,133.08,133.07,0.063]
[1744994849985,22.6372875,133.08,133.07,0.063]
[1744994852093,41.28693636,133.08,133.07,0.063]
[1744994854081,41.28693636,133.08,133.07,1e-08]
[1744994858089,41.28693636,133.08,133.06,1e-08]
[1744994858090,33.77265924,133.07,133.06,1e-08]
[1744994858869,33.77265924,133.07,133.03,0.03]
[1744994859098,15.12301038,133.04,133.03,0.03]
[1744994859971,22.63954676,133.04,133.03,0.03]
[1744994860391,7.51653638,133.04,133.03,0.03]
[1744994860789,59.9092374,133.08,133.03,15.15301038]
[1744994860994,7.51484181,133.07,133.05,15.12301038]
[1744994861504,7.51484181,133.07,133.04,15.12301038]
[1744994862095,7.51427712,133.08,133.04,15.12301038]
[1744994862402,7.51427712,133.08,133.05,15.12301038]
[1744994867919,7.51427712,133.08,133.04,15.12301038]
[1744994870219,7.51427712,133.08,133.05,15.12301038]
[1744994875325,7.51371252,133.09,133.07,15.12301038]
[1744994875495,7.51371252,133.09,133.06,15.12301038]
[1744994875899,7.51371252,133.09,133.07,15.12301038]